[Event "FAI-ch Master 2022"]
[Site "Eidi"]
[Date "2022.04.10"]
[Round "2.4"]
[White "Egilstoft, Rogvi"]
[Black "Simonsen, Hans Kristian"]
[Result "0-1"]
[ECO "B10"]
[WhiteElo "2378"]
[BlackElo "2166"]
[Annotator "TA"]
[PlyCount "134"]
[EventDate "2022.04.10"]
[EventType "tourn"]
[EventCountry "FAI"]
[SourceTitle "playchess.com"]
[Source "ChessBase"]
[SourceQuality "1"]
[TimeControl "40/5400+30:1800+30"]

{[%evp 9,134,14,0,-7,0,-10,18,0,31,8,34,21,24,0,46,26,27,6,16,0,0,0,3,-12,13,7,0,6,6,-26,-11,-11,0,0,19,14,0,-27,12,0,0,7,16,10,187,180,180,180,204,222,270,258,387,394,323,307,285,280,392,388,324,218,329,322,1016,385,365,0,305,112,110,0,0,0,0,0,37,17,169,139,154,116,116,119,327,223,223,-193,-193,-193,-193,-735,-453,-717,-693,-754,-514,-525,-493,-525,-525,-525,-270,-262,-238,-525,-376,-779,-779,-760,-627,-504,-495,-1280,-357,-2223,-1420,-1222,-1129,-29980,-29980,-29989,-29980,-29980,-29981,-29981,-29982]} 1. e4 {[%emt 0:00:02]} c6 {[%emt 0:02:30]} 2. d3 {[%emt 0:01:21]} d5 {[%emt 0:00:37]} 3. Nd2 {[%emt 0:00:13]} g6 {[%emt 0:03:31]} 4. g3 {[%emt 0:01:47]} Bg7 {[%emt 0:01:13]} 5. Bg2 {[%emt 0:00:08]} e5 {[%emt 0:02:45]} 6. b3 {[%emt 0:05:56] [#] B10: Caro-Kann: 2 d3 and 2 c4.} Be6 $146 {[%emt 0:08:33]} ({Predecessor:} 6... dxe4 7. dxe4 Ne7 8. Bb2 O-O 9. h4 h5 10. Qe2 Qa5 11. Bh3 Bxh3 12. Nxh3 Nd7 13. c3 {½-½ (58) Kroekel,P-Lange,H (2174) Germany 2003}) 7. Bb2 {[%emt 0:02:08]} Nd7 {[%emt 0:07:08]} 8. Ne2 {[%emt 0:05:17][%cal Oe2f4] The position is equal.} d4 {[%emt 0:05:22]} 9. f4 {[%emt 0:04:13]} (9. O-O $5 {[%cal Rf2f4]}) 9... Nh6 {[%emt 0:04:07]} 10. h3 {[%emt 0:01:21]} f6 {[%emt 0:17:30]} 11. Nf3 {[%emt 0:03:17]} Qa5+ {[%emt 0:02:24]} (11... Nf7 $11) 12. Qd2 {[%emt 0:00:31]} Qxd2+ {[%emt 0:00:11]} 13. Nxd2 {[%emt 0:03:54]} Nf7 {[%emt 0:01:26][%cal Bh6f7,Bf7d8,Bd8c6][%mdl 32]} 14. O-O {[%emt 0:07:56]} Nd8 {[%emt 0:00:47]} 15. Nf3 {[%emt 0:01:59]} c5 {[%emt 0:02:04]} 16. g4 {[%emt 0:08:02]} Nc6 {[%emt 0:02:47]} 17. g5 {[%emt 0:07:24]} fxg5 {[%emt 0:06:33]} 18. Nxg5 {[%emt 0:04:04]} Bg8 {[%emt 0:00:25]} 19. a4 {[%emt 0:04:24]} h6 {[%emt 0:01:05]} 20. Nf3 {[%emt 0:00:29]} Bf7 {[%emt 0:02:44]} 21. Ba3 {[%emt 0:05:37]} b6 {[%emt 0:06:08]} 22. h4 {[%emt 0:03:59]} Be6 {[%emt 0:01:08]} 23. Rf2 {[%emt 0:05:53][%cal Of4f5]} Nf6 {[%emt 0:00:15]} 24. Nxe5 {[%emt 0:03:55]} Nxe5 {[%emt 0:00:20]} 25. fxe5 {[%emt 0:00:06]} Ng4 {[%emt 0:00:54][%csl LRe5,LRf2]} 26. Nf4 {[%emt 0:01:17][%csl LRe6,LRg6]} Bg8 {[%emt 0:03:20]} (26... Nxf2 $11 27. Nxe6 Ng4 28. Nc7+ (28. Nxg7+ Kf7 $11) 28... Ke7) 27. Nxg6 $18 {[%emt 0:05:28]} Nxf2 {[%emt 0:00:10]} 28. Kxf2 {[%emt 0:00:14]} ({Not} 28. Nxh8 Nxd3 29. cxd3 Bxh8 $11) 28... Rh7 {[%emt 0:00:29]} 29. Bh3 {[%emt 0:00:55]} Bf8 {[%emt 0:01:21]} 30. Rg1 {[%emt 0:04:23]} h5 {[%emt 0:01:24]} (30... Rg7 $142 31. h5 Bf7) 31. Nxf8 {[%emt 0:03:49]} Kxf8 {[%emt 0:02:41]} 32. Bc1 {[%emt 0:00:04]} Re8 {[%emt 0:00:57]} 33. Bf5 {[%emt 0:00:24]} Rh8 {[%emt 0:00:50]} 34. Rg6 {[%emt 0:01:41] Prevents Be6.} Rxe5 {[%emt 0:02:06]} 35. Rc6 {[%emt 0:02:46]} Bd5 {[%emt 0:01:55]} (35... Rxf5+ {was necessary.} 36. exf5 Bd5) 36. Bh6+ {[%emt 0:01:08]} Ke7 $2 {[%emt 0:00:45]} (36... Kf7 37. Bg6+ Ke7 38. Rc7+ Kd6) 37. Bg5+ $2 {[%emt 0:00:38] This bishop pair is nice.} (37. Rc7+ Kd6 38. Rd7+ Kc6 39. Bf4 (39. exd5+ Rxd5 40. Rxd5 Kxd5 $18) 39... Bxe4 40. Bxe5 Bxf5 41. Rc7+ Kd5 42. Bxh8) 37... Kf8 {[%emt 0:00:12]} 38. Bh6+ $2 {[%emt 0:01:43]} (38. Rc8+ $18 Kg7 39. Rc7+ Bf7 40. Rxa7) 38... Kf7 $2 {[%emt 0:00:28][%mdl 8192]} (38... Ke7 $1 $11 {and Black stays safe.} 39. Rc7+ Kd6) 39. Rc7+ $2 {[%emt 0:00:56]} (39. Bg6+ $1 $18 Ke7 40. Rc7+ Kd6 41. Bg7) 39... Re7 $16 {[%emt 0:01:02] [#]} 40. Rxe7+ {[%emt 0:00:00]} ({Only move:} 40. Bg6+ $1 $16 {[%mdl 512]} Kxg6 41. Rxe7 Bxe4 42. dxe4 Kxh6 43. Rxa7) 40... Kxe7 {[%emt 0:00:00][%mdl 4096] Endgame KRB-KB} 41. Bg5+ {[%emt 0:16:39]} Ke8 $1 {[%emt 0:15:03]} 42. Kg3 {[%emt 0:02:57]} ({Wrong is} 42. exd5 $2 Rf8 43. Bf4 Rxf5 $19) 42... Bc6 {[%emt 0:00:34]} 43. e5 {[%emt 0:04:55][%mdl 1024] White has compensation.} Kf7 $2 {[%emt 0:09:03]} (43... Bd5 $11 {and Black has nothing to worry.}) 44. e6+ $18 {[%emt 0:02:25]} Kg7 {[%emt 0:01:26]} 45. Kf4 {[%emt 0:04:43] Ke5 is the strong threat.} Rf8 {[%emt 0:02:54]} 46. Ke5 {[%emt 0:00:09]} Bf3 $2 {[%emt 0:00:20]} (46... Rxf5+ $16 47. Kxf5 Bf3) 47. Bh3 $1 {[%emt 0:01:47] Hoping for e7.} Bg4 {[%emt 0:00:50] [#]} 48. e7 $4 {[%emt 0:00:37][%mdl 8192] [#]} Rf2 $1 $19 {[%emt 0:02:02]} 49. Bxg4 {[%emt 0:00:54]} hxg4 {[%emt 0:00:03]} 50. e8=N+ $2 {[%emt 0:00:20]} (50. h5 Kf7 51. h6) 50... Kf8 {[%emt 0:00:36]} 51. Nd6 {[%emt 0:00:28]} (51. Nc7 $142 g3 52. Ne6+ Kf7 53. Nf4) 51... g3 {[%emt 0:00:22]} 52. Ne4 {[%emt 0:00:13]} Re2 {[%emt 0:00:18] Strongly threatening ...g2.} 53. Bf4 {[%emt 0:00:33]} g2 {[%emt 0:00:12]} 54. Bh2 {[%emt 0:00:02]} Re1 {[%emt 0:00:11] Threatens to win with ...Rh1.} 55. Kf4 {[%emt 0:01:02]} g1=Q {[%emt 0:00:28]} 56. Bxg1 {[%emt 0:00:02]} Rxg1 {[%emt 0:00:02] KR-KN} 57. Nd6 $2 {[%emt 0:01:18]} (57. c3) 57... Rg2 {[%emt 0:00:31]} 58. Nb5 $2 {[%emt 0:00:24]} (58. a5) 58... Rxc2 {[%emt 0:00:09]} 59. Nxa7 {[%emt 0:00:35]} Rc3 {[%emt 0:00:32][%csl LRb3,LRd3]} 60. Ke4 {[%emt 0:00:25][%cal Oa4a5]} Rxb3 {[%emt 0:01:03]} 61. h5 {[%emt 0:00:03]} (61. Nc6 $142 Kf7 62. h5) 61... Rb1 $2 {[%emt 0:00:51]} (61... Rb4 62. Nc8 Kg7) 62. Nc8 $2 {[%emt 0:00:21]} (62. Nc6 Rh1 63. Ne5) 62... Kg7 {[%emt 0:01:57]} 63. Nd6 {[%emt 0:00:42]} Kh6 {[%emt 0:00:14]} 64. a5 {[%emt 0:00:39]} bxa5 {[%emt 0:00:09][%cal Bb6a5,Ba5a4,Ba4a3][%mdl 32] Black mates.} 65. Nb7 {[%emt 0:00:50]} Ra1 {[%emt 0:00:12]} 66. Nxc5 a4 {[%emt 0:00:02]} 67. Kxd4 {[%emt 0:00:02]} a3 {[%emt 0:00:04] Weighted Error Value: White=0.73/Black=0.57} 0-1

[Event "FAI-ch Master 2022"]
[Site "Eidi"]
[Date "2022.04.11"]
[Round "3.1"]
[White "Simonsen, Hans Kristian"]
[Black "Nolsoe, Rani"]
[Result "1-0"]
[ECO "E61"]
[WhiteElo "2166"]
[BlackElo "2072"]
[Annotator "RC"]
[PlyCount "115"]
[EventDate "2022.04.10"]
[EventType "tourn"]
[EventCountry "FAI"]
[SourceTitle "playchess.com"]
[Source "ChessBase"]
[SourceQuality "1"]
[TimeControl "40/5400+30:1800+30"]

1. c4 {[%emt 0:00:05]} Nf6 {[%emt 0:03:14]} 2. d4 {[%emt 0:00:10]} g6 {[%emt 0:00:35]} 3. g3 {[%emt 0:00:44]} Bg7 {[%emt 0:00:29]} 4. Bg2 {[%emt 0:00:31]} O-O {[%emt 0:00:13]} 5. Nc3 {[%emt 0:00:05]} d6 {[%emt 0:00:24]} 6. e3 {[%emt 0:01:40]} e5 {[%emt 0:10:19]} 7. Nge2 {[%emt 0:01:04]} a5 {[%emt 0:06:52]} 8. O-O {[%emt 0:06:09]} c6 {[%emt 0:01:51]} 9. b3 {[%emt 0:07:12]} Re8 {[%emt 0:05:59]} 10. d5 {[%emt 0:18:58]} c5 {[%emt 0:04:45]} 11. e4 {[%emt 0:00:59]} Nh5 {[%emt 0:04:09]} 12. Nb5 {[%emt 0:10:33]} Na6 {[%emt 0:04:27]} 13. Bb2 {[%emt 0:11:30]} Qe7 {[%emt 0:11:44]} 14. Nec3 {[%emt 0:08:44]} Nc7 {[%emt 0:03:54]} 15. Na4 {[%emt 0:02:55]} Nxb5 {[%emt 0:02:01]} 16. cxb5 {[%emt 0:00:02]} Bd7 {[%emt 0:02:42]} 17. Qe2 {[%emt 0:03:04]} Qd8 {[%emt 0:02:27]} 18. Bc3 {[%emt 0:01:27]} Bh6 {[%emt 0:02:56]} 19. Nb2 {[%emt 0:00:06]} f5 {[%emt 0:16:09]} 20. exf5 {[%emt 0:00:44]} Bxf5 {[%emt 0:00:12]} 21. Nc4 {[%emt 0:01:45]} b6 {[%emt 0:00:42]} 22. Rad1 {[%emt 0:08:39]} Ra7 {[%emt 0:00:17]} 23. Bf3 {[%emt 0:00:27]} Nf6 {[%emt 0:00:46]} 24. a4 {[%emt 0:00:56]} Rf7 {[%emt 0:00:54]} 25. Bg2 {[%emt 0:02:59]} Bg7 {[%emt 0:03:12]} 26. Qb2 {[%emt 0:02:24]} Kf8 {[%emt 0:00:53]} 27. h3 {[%emt 0:00:10]} h5 {[%emt 0:01:01]} 28. Rfe1 {[%emt 0:00:13]} Bh6 {[%emt 0:00:37]} 29. Bd2 {[%emt 0:04:35]} Bxd2 {[%emt 0:04:19]} 30. Qxd2 {[%emt 0:00:04]} Kg7 {[%emt 0:03:31]} 31. Qc3 {[%emt 0:00:30]} Kh7 {[%emt 0:00:55]} 32. f3 {[%emt 0:01:07]} g5 {[%emt 0:00:40]} 33. Qd2 {[%emt 0:00:27]} Ng8 {[%emt 0:01:50]} 34. g4 {[%emt 0:00:13]} hxg4 {[%emt 0:00:38]} 35. fxg4 {[%emt 0:00:06]} Bg6 {[%emt 0:00:12]} 36. Be4 {[%emt 0:01:17]} Rf4 {[%emt 0:00:42]} 37. Bxg6+ {[%emt 0:00:17]} Kxg6 {[%emt 0:00:04]} 38. Qc2+ {[%emt 0:01:39]} Kg7 {[%emt 0:00:51]} 39. Ne3 {[%emt 0:00:05]} Ne7 {[%emt 0:00:21]} 40. Ng2 {[%emt 0:00:00]} Rf3 {[%emt 0:00:00]} 41. Re3 {[%emt 0:21:41]} Ref8 {[%emt 0:17:12]} 42. Qe2 {[%emt 0:04:55]} R3f6 {[%emt 0:08:25]} 43. h4 {[%emt 0:01:42]} gxh4 {[%emt 0:00:47]} 44. Nxh4 {[%emt 0:02:24]} Rh8 {[%emt 0:02:01]} 45. g5 {[%emt 0:00:26]} Rf7 {[%emt 0:01:53]} 46. Qg4 {[%emt 0:03:06]} Rf4 {[%emt 0:01:22]} 47. Qxf4 {[%emt 0:00:05]} exf4 {[%emt 0:00:45]} 48. Rxe7+ {[%emt 0:00:04]} Qxe7 {[%emt 0:00:33]} 49. Nf5+ {[%emt 0:00:06]} Kf7 {[%emt 0:00:50]} 50. g6+ {[%emt 0:00:56]} Kf6 {[%emt 0:00:40]} 51. Nxe7 {[%emt 0:00:06]} Kxe7 {[%emt 0:00:07]} 52. Re1+ {[%emt 0:00:07]} Kd7 {[%emt 0:00:21]} 53. Kg2 {[%emt 0:00:10]} Re8 {[%emt 0:00:52]} 54. Rxe8 {[%emt 0:02:58]} Kxe8 {[%emt 0:00:10]} 55. Kf3 {[%emt 0:00:04]} Ke7 {[%emt 0:00:22]} 56. Kxf4 {[%emt 0:00:05]} Kf6 {[%emt 0:00:03]} 57. g7 {[%emt 0:00:07]} Kxg7 {[%emt 0:00:12]} 58. Kg5 {[%emt 0:00:08]} 1-0

[Event "FAI-ch Master 2022"]
[Site "Eidi"]
[Date "2022.04.11"]
[Round "3.2"]
[White "Nielsen, Hogni Egilstoft"]
[Black "Egilstoft, Rogvi"]
[Result "1-0"]
[ECO "C54"]
[WhiteElo "2405"]
[BlackElo "2378"]
[Annotator "RC"]
[PlyCount "85"]
[EventDate "2022.04.10"]
[EventType "tourn"]
[EventCountry "FAI"]
[SourceTitle "playchess.com"]
[Source "ChessBase"]
[SourceQuality "1"]
[TimeControl "40/5400+30:1800+30"]

1. e4 {[%emt 0:00:03]} e5 {[%emt 0:00:12]} 2. Nf3 {[%emt 0:00:06]} Nc6 {[%emt 0:00:08]} 3. Bc4 {[%emt 0:00:07]} Bc5 {[%emt 0:00:34]} 4. c3 {[%emt 0:00:27]} Nf6 {[%emt 0:00:09]} 5. d3 {[%emt 0:00:13]} O-O {[%emt 0:02:03]} 6. O-O {[%emt 0:01:01]} d5 {[%emt 0:01:41]} 7. exd5 {[%emt 0:00:23]} Nxd5 {[%emt 0:00:08]} 8. Re1 {[%emt 0:01:32]} Nb6 {[%emt 0:05:01]} 9. b4 {[%emt 0:09:10]} Be7 {[%emt 0:21:31]} 10. Bb3 {[%emt 0:10:01]} Bf6 {[%emt 0:01:49]} 11. b5 {[%emt 0:05:55]} Nb4 {[%emt 0:18:56]} 12. d4 {[%emt 0:12:46]} e4 {[%emt 0:07:32]} 13. Ba3 {[%emt 0:23:09]} exf3 {[%emt 0:04:39]} 14. Bxb4 {[%emt 0:00:08]} Re8 {[%emt 0:00:12]} 15. Nd2 {[%emt 0:00:13]} Rxe1+ {[%emt 0:14:16]} 16. Qxe1 {[%emt 0:00:12]} fxg2 {[%emt 0:00:05]} 17. Qe4 {[%emt 0:04:25]} Bd7 {[%emt 0:00:27]} 18. a4 {[%emt 0:00:11]} Rb8 {[%emt 0:06:35]} 19. Re1 {[%emt 0:03:08]} c6 {[%emt 0:08:03]} 20. Nf3 {[%emt 0:07:01]} cxb5 {[%emt 0:02:19]} 21. axb5 {[%emt 0:00:04]} g6 {[%emt 0:03:36]} 22. Ne5 {[%emt 0:07:23]} Bxe5 {[%emt 0:00:35]} 23. Qxe5 {[%emt 0:00:04]} Qe8 {[%emt 0:00:08]} 24. Bxf7+ {[%emt 0:04:00]} Kxf7 {[%emt 0:00:01]} 25. Qf4+ {[%emt 0:00:13]} Kg8 {[%emt 0:00:02]} 26. Rxe8+ {[%emt 0:00:06]} Rxe8 {[%emt 0:00:03]} 27. Kxg2 {[%emt 0:02:43]} Bxb5 {[%emt 0:00:03]} 28. h4 {[%emt 0:01:29]} Bc6+ {[%emt 0:01:09]} 29. Kh2 {[%emt 0:00:13]} Nd5 {[%emt 0:00:19]} 30. Qd6 {[%emt 0:00:30]} Nxb4 {[%emt 0:00:22]} 31. Qxb4 {[%emt 0:00:03]} Re4 {[%emt 0:00:17]} 32. Kg3 {[%emt 0:01:16]} h5 {[%emt 0:00:09]} 33. Qd6 {[%emt 0:00:32]} Rg4+ {[%emt 0:00:35]} 34. Kh3 {[%emt 0:00:02]} Bg2+ {[%emt 0:01:25]} 35. Kh2 {[%emt 0:00:01]} Be4 {[%emt 0:00:35]} 36. Qe6+ {[%emt 0:01:15]} Kg7 {[%emt 0:00:35]} 37. Qe7+ {[%emt 0:00:38]} Kg8 {[%emt 0:00:18]} 38. d5 {[%emt 0:01:57]} g5 {[%emt 0:02:18]} 39. hxg5 {[%emt 0:03:45]} Rh4+ {[%emt 0:00:08]} 40. Kg3 {[%emt 0:00:00]} Rg4+ {[%emt 0:00:00]} 41. Kh3 {[%emt 0:15:12]} Bf5 {[%emt 0:17:05]} 42. Qe8+ {[%emt 0:00:06]} Kg7 {[%emt 0:00:19]} 43. Qe5+ {[%emt 0:00:07]} 1-0

[Event "FAI-ch Master 2022"]
[Site "Eidi"]
[Date "2022.04.11"]
[Round "3.3"]
[White "Apol, Luitjen Akselsson"]
[Black "Samuelsen, Carl Eli Nolsoe"]
[Result "1-0"]
[ECO "B40"]
[WhiteElo "2154"]
[BlackElo "2158"]
[Annotator "RC"]
[PlyCount "61"]
[EventDate "2022.04.10"]
[EventType "tourn"]
[EventCountry "FAI"]
[SourceTitle "playchess.com"]
[Source "ChessBase"]
[SourceQuality "1"]
[TimeControl "40/5400+30:1800+30"]

1. e4 {[%emt 0:00:21]} c5 {[%emt 0:00:20]} 2. Nf3 {[%emt 0:00:46]} e6 {[%emt 0:00:40]} 3. g3 {[%emt 0:00:21]} a6 {[%emt 0:02:20]} 4. Bg2 {[%emt 0:02:14]} Nc6 {[%emt 0:00:17]} 5. O-O {[%emt 0:00:56]} Qc7 {[%emt 0:02:34]} 6. c3 {[%emt 0:06:31]} Nf6 {[%emt 0:05:00]} 7. Qe2 {[%emt 0:07:01]} d6 {[%emt 0:08:58]} 8. d4 {[%emt 0:00:45]} e5 {[%emt 0:01:53]} 9. Bg5 {[%emt 0:11:19]} Be7 {[%emt 0:05:15]} 10. dxc5 {[%emt 0:01:39]} dxc5 {[%emt 0:00:14]} 11. Bxf6 {[%emt 0:05:06]} Bxf6 {[%emt 0:00:22]} 12. Na3 {[%emt 0:00:58]} Be6 {[%emt 0:07:06]} 13. Nc2 {[%emt 0:00:48]} O-O {[%emt 0:02:00]} 14. Ne3 {[%emt 0:00:34]} Ne7 {[%emt 0:01:19]} 15. h4 {[%emt 0:05:19]} h6 {[%emt 0:05:07]} 16. Nd2 {[%emt 0:06:09]} Rad8 {[%emt 0:02:01]} 17. Rfd1 {[%emt 0:00:25]} g6 {[%emt 0:04:37]} 18. a4 {[%emt 0:03:10]} Bg7 {[%emt 0:01:22]} 19. h5 {[%emt 0:04:00]} Qc8 {[%emt 0:13:01]} 20. Ndc4 {[%emt 0:06:33]} Rxd1+ {[%emt 0:06:13]} 21. Rxd1 {[%emt 0:00:30]} Qc6 {[%emt 0:02:59]} 22. hxg6 {[%emt 0:04:56]} Qxa4 {[%emt 0:02:58]} 23. gxf7+ {[%emt 0:01:18]} Bxf7 {[%emt 0:00:15]} 24. Bh3 {[%emt 0:03:02]} Qc6 {[%emt 0:05:54]} 25. Rd7 {[%emt 0:03:54]} Ng6 {[%emt 0:06:55]} 26. Nd6 {[%emt 0:01:42]} b5 {[%emt 0:05:16]} 27. Qg4 {[%emt 0:08:59]} Be8 {[%emt 0:04:48]} 28. Qe6+ {[%emt 0:00:14]} Kh7 {[%emt 0:01:21]} 29. Nxe8 {[%emt 0:00:13]} Qxe6 {[%emt 0:00:27]} 30. Rxg7+ {[%emt 0:00:06]} Kh8 {[%emt 0:00:05]} 31. Bxe6 {[%emt 0:00:06]} 1-0

[Event "FAI-ch Master 2022"]
[Site "Eidi"]
[Date "2022.04.11"]
[Round "3.4"]
[White "Olsen, Wille"]
[Black "Nielsen, Torkil"]
[Result "1/2-1/2"]
[ECO "A97"]
[WhiteElo "2006"]
[BlackElo "2135"]
[Annotator "RC"]
[PlyCount "43"]
[EventDate "2022.04.10"]
[EventType "tourn"]
[EventCountry "FAI"]
[SourceTitle "playchess.com"]
[Source "ChessBase"]
[SourceQuality "1"]
[TimeControl "40/5400+30:1800+30"]

1. Nf3 {[%emt 0:00:06]} e6 {[%emt 0:00:55]} 2. d4 {[%emt 0:01:45]} f5 {[%emt 0:00:44]} 3. g3 {[%emt 0:00:09]} Nf6 {[%emt 0:00:17]} 4. Bg2 {[%emt 0:01:08]} Be7 {[%emt 0:00:11]} 5. O-O {[%emt 0:00:14]} O-O {[%emt 0:00:08]} 6. c4 {[%emt 0:00:36]} d6 {[%emt 0:00:09]} 7. Nc3 {[%emt 0:01:18]} Qe8 {[%emt 0:00:23]} 8. Re1 {[%emt 0:02:21]} Qg6 {[%emt 0:00:39]} 9. e4 {[%emt 0:03:09]} Nxe4 {[%emt 0:01:04]} 10. Nxe4 {[%emt 0:00:50]} fxe4 {[%emt 0:00:11]} 11. Rxe4 {[%emt 0:00:31]} e5 {[%emt 0:04:19]} 12. Nh4 {[%emt 0:07:25]} Bxh4 {[%emt 0:34:27]} 13. Rxh4 {[%emt 0:04:19]} c6 {[%emt 0:02:02]} 14. dxe5 {[%emt 0:10:36]} dxe5 {[%emt 0:02:42]} 15. Be4 {[%emt 0:05:31]} Bf5 {[%emt 0:01:06]} 16. Bxf5 {[%emt 0:04:30]} Qxf5 {[%emt 0:00:34]} 17. Be3 {[%emt 0:01:46]} Nd7 {[%emt 0:04:17]} 18. Rh5 {[%emt 0:14:44]} Qe6 {[%emt 0:03:02]} 19. Qd3 {[%emt 0:01:24]} Nf6 {[%emt 0:04:40]} 20. Rh4 {[%emt 0:00:42]} Rad8 {[%emt 0:04:05]} 21. Qe2 {[%emt 0:00:24]} Rd7 {[%emt 0:05:31]} 22. Bg5 {[%emt 0:03:29]} 1/2-1/2

[Event "FAI-ch Master 2022"]
[Site "Eidi"]
[Date "2022.04.12"]
[Round "4.1"]
[White "Nolsoe, Rani"]
[Black "Nielsen, Torkil"]
[Result "1-0"]
[ECO "C56"]
[WhiteElo "2072"]
[BlackElo "2135"]
[Annotator "TA"]
[PlyCount "65"]
[EventDate "2022.04.10"]
[EventType "tourn"]
[EventCountry "FAI"]
[SourceTitle "playchess.com"]
[Source "ChessBase"]
[SourceQuality "1"]
[TimeControl "40/5400+30:1800+30"]

{[%evp 22,65,0,-2,56,54,66,49,50,29,27,23,13,16,29,31,111,80,125,86,107,91,94,53,108,69,94,104,186,178,194,190,468,461,1043,1069,1246,1182,3375,2675,29987,29988,29992,29993,29994,29995]} 1. e4 {[%emt 0:00:10]} e5 {[%emt 0:01:51]} 2. Nf3 {[%emt 0:00:44]} Nc6 {[%emt 0:00:24]} 3. Bc4 {[%emt 0:01:09]} Nf6 {[%emt 0:01:07]} 4. d4 {[%emt 0:01:10]} exd4 {[%emt 0:00:38]} 5. e5 {[%emt 0:00:32]} d5 {[%emt 0:00:17]} 6. Bb5 {[%emt 0:00:20]} Ne4 {[%emt 0:00:13]} 7. Nxd4 {[%emt 0:00:17]} Bd7 {[%emt 0:00:12]} 8. Bxc6 {[%emt 0:00:05]} bxc6 {[%emt 0:00:20]} 9. O-O {[%emt 0:00:29]} Bc5 {[%emt 0:00:35]} 10. f3 {[%emt 0:00:24]} Ng5 {[%emt 0:00:17]} 11. f4 {[%emt 0:00:08]} Ne4 {[%emt 0:17:45]} 12. Be3 {[%emt 0:02:01]} Qe7 {[%emt 0:14:40] C56: Two Knights: 4 d4 exd4 5 0-0 Nxe4.} (12... Bb6 $11) 13. Nd2 $14 {[%emt 0:00:32]} f5 {[%emt 0:01:48]} 14. Nxe4 {[%emt 0:00:25]} fxe4 {[%emt 0:08:24] White is slightly better.} 15. Qd2 {[%emt 0:03:56][%cal Oc2c4]} (15. b4 $5 {[%cal Rb4c5]} Bb6 16. c4 dxc4 17. Qe2 $14) 15... O-O {[%emt 0:16:32]} 16. Nb3 {[%emt 0:05:36]} Bb6 {[%emt 0:03:02]} 17. Qc3 {[%emt 0:05:21]} Bxe3+ {[%emt 0:08:44]} 18. Qxe3 {[%emt 0:03:11] [#]} Qh4 $146 {[%emt 0:02:03]} (18... Rf7 $14) ({Predecessor:} 18... g5 19. fxg5 Qxe5 20. c3 Bg4 21. Nc5 Rae8 22. h3 Bc8 23. Rae1 Kg7 24. Nb3 Ba6 25. Rxf8 Rxf8 26. Qxa7 {0-1 (32) Phillips,R (2170)-Kett,T (2223) Wales 2018}) 19. Nc5 {[%emt 0:01:14]} Bg4 {[%emt 0:02:02]} 20. c3 {[%emt 0:16:33]} Rae8 {[%emt 0:03:49]} 21. Rae1 {[%emt 0:22:35]} Bc8 {[%emt 0:02:58][%cal Og7g5]} 22. Rf2 {[%emt 0:11:59][%cal Oc3c4]} Rf5 {[%emt 0:01:05]} ({Better is} 22... g5 $14) 23. Ref1 {[%emt 0:01:14]} Ref8 {[%emt 0:01:08]} 24. h3 {[%emt 0:03:01] And now g4 would win. &Bianco is more active.} Rh5 {[%emt 0:06:38]} (24... Qe7 $16) 25. e6 $18 {[%emt 0:02:26]} g6 {[%emt 0:02:32]} 26. Kh2 {[%emt 0:02:05][%cal Og2g4]} Qe7 $2 {[%emt 0:03:25]} (26... Re8 {is a better defense.} 27. f5 gxf5) 27. g4 {[%emt 0:01:07][%cal Bg2g4,Bg4f5][%mdl 32]} Rh4 {[%emt 0:00:21]} (27... d4 $142 28. cxd4 Rxc5) 28. f5 {[%emt 0:01:14]} gxf5 {[%emt 0:00:48]} 29. gxf5 {[%emt 0:00:15] [#] White threatens Rg2+ and mate.} Rf6 {[%emt 0:00:50]} 30. Qg3+ {[%emt 0:01:03]} Kh8 {[%emt 0:00:29]} 31. Qxh4 {[%emt 0:00:39] White mates.} e3 {[%emt 0:00:00]} 32. Rg2 {[%emt 0:00:44]} e2 {[%emt 0:00:31]} 33. Rfg1 {[%emt 0:02:28] Weighted Error Value: White=0.12 (very precise) /Black=0.79} 1-0

[Event "FAI-ch Master 2022"]
[Site "Eidi"]
[Date "2022.04.12"]
[Round "4.2"]
[White "Samuelsen, Carl Eli Nolsoe"]
[Black "Olsen, Wille"]
[Result "1-0"]
[ECO "C02"]
[WhiteElo "2158"]
[BlackElo "2006"]
[Annotator "TA"]
[PlyCount "47"]
[EventDate "2022.04.10"]
[EventType "tourn"]
[EventCountry "FAI"]
[SourceTitle "playchess.com"]
[Source "ChessBase"]
[SourceQuality "1"]
[TimeControl "40/5400+30:1800+30"]

{[%evp 11,47,0,24,2,0,-24,0,-44,0,-45,56,48,56,59,103,85,128,140,114,75,94,94,923,903,1114,1098,1077,1059,29979,29980,3158,2013,5086,3656,5469,995,892,811]} 1. e4 {[%emt 0:00:15]} e6 {[%emt 0:00:31]} 2. d4 {[%emt 0:00:54]} d5 {[%emt 0:00:31]} 3. e5 {[%emt 0:00:22]} c5 {[%emt 0:00:06]} 4. c3 {[%emt 0:00:12]} Nc6 {[%emt 0:00:12]} 5. Nf3 {[%emt 0:00:09]} Bd7 {[%emt 0:00:24]} 6. Bd3 {[%emt 0:04:07]} Rc8 {[%emt 0:09:07]} 7. O-O {[%emt 0:04:06] C02: French: Advance Variation.} cxd4 {[%emt 0:03:10]} 8. Re1 {[%emt 0:05:28]} Nge7 {[%emt 0:24:09] [#]} 9. Nbd2 $146 {[%emt 0:12:57] The position is equal.} ({Predecessor:} 9. h4 h6 10. a3 dxc3 11. Nxc3 a6 12. Be3 Na5 13. Qe2 Nc4 14. Bc1 b5 15. a4 {1-0 (72) Hector,J (2532)-Brynell,S (2461) Vaxjo 2008}) 9... Ng6 {[%emt 0:07:21]} 10. Nb3 {[%emt 0:01:13]} Be7 {[%emt 0:04:59]} ({Black should try} 10... dxc3 $15 11. bxc3 Be7) 11. Nbxd4 $14 {[%emt 0:07:13]} Nxd4 {[%emt 0:04:37]} 12. Nxd4 {[%emt 0:04:50]} O-O {[%emt 0:11:36] [#]} 13. Qh5 $1 {[%emt 0:09:42] &Bianco is more active.} Qb6 {[%emt 0:07:19]} 14. Re3 {[%emt 0:08:12][%cal Be1e3,Be3h3,Bh3g3][%mdl 32] Black must now prevent Rh3.} f5 {[%emt 0:02:32]} (14... h6 $2 15. Rg3 (15. Bxg6 fxg6 16. Qxg6 Be8 $18) 15... Bh4 16. Rf3 $18) 15. exf6 {[%emt 0:02:40]} Rxf6 {[%emt 0:01:06]} 16. Rh3 $40 {[%emt 0:09:47][%mdl 128] White has strong attack.} Be8 $2 {[%emt 0:03:03][%mdl 8192] This costs Black the game.} (16... e5 $16 17. Qxh7+ Kf7) 17. Qxh7+ $18 {[%emt 0:01:27]} Kf7 {[%emt 0:00:14]} 18. Nf3 {[%emt 0:06:11]} Rf5 {[%emt 0:01:41] Against Ng5+} 19. Rg3 {[%emt 0:04:45]} Kf6 {[%emt 0:01:55]} 20. Bxf5 {[%emt 0:01:01]} exf5 {[%emt 0:01:18]} 21. Bg5+ {[%emt 0:00:29] White is clearly winning.} Kf7 {[%emt 0:00:48]} 22. Bxe7 {[%emt 0:01:37][%cal Oa1e1] [#] Threatening mate with Re1!} Kxe7 {[%emt 0:00:08]} 23. Qxg7+ {[%emt 0:00:51]} (23. Re1+ $142 Kd6 24. Qxg7) 23... Kd8 {[%emt 0:00:09]} 24. Re1 {[%emt 0:01:49] Weighted Error Value: White=0.24 (precise) /Black=0.85} 1-0